[Event "Titled Tuesday Blitz January 31 Late 2023"]
[White "Hnydiuk, Aleksander"]
[Black "Hakobyan, Aram"]
[WhiteFideId "1109057"]
[BlackFideId "13306677"]
[WhiteElo "2363"]
[BlackElo "2608"]
[Result "0-1"]
[Round "01"]
[TimeControl "180+2"]
[Date "2023.01.31"]
[WhiteClock "0:00:01"]
[BlackClock "0:00:43"]

1. e4 {[%clk 0:02:59]}  c5 {[%clk 0:02:59]} 2. Nf3 {[%clk 0:02:59]}  d6 {[%clk 0:03:00]} 3. d4 {[%clk 0:02:59]}  cxd4 {[%clk 0:03:01]} 4. Nxd4 {[%clk 0:02:59]}  Nf6 {[%clk 0:03:01]} 5. Nc3 {[%clk 0:02:59]}  a6 {[%clk 0:03:02]} 6. Be3 {[%clk 0:02:58]}  Ng4 {[%clk 0:03:01]} 7. Bc1 {[%clk 0:02:56]}  Nf6 {[%clk 0:03:02]} 8. Be3 {[%clk 0:02:56]}  e5 {[%clk 0:03:02]} 9. Nb3 {[%clk 0:02:55]}  Be7 {[%clk 0:03:03]} 10. f3 {[%clk 0:02:53]}  h5 {[%clk 0:03:03]} 11. Qd2 {[%clk 0:02:52]}  Be6 {[%clk 0:03:03]} 12. O-O-O {[%clk 0:02:52]}  Nbd7 {[%clk 0:03:04]} 13. h3 {[%clk 0:02:46]}  h4 {[%clk 0:03:04]} 14. Bd3 {[%clk 0:02:41]}  b5 {[%clk 0:03:00]} 15. f4 {[%clk 0:02:41]}  Qc7 {[%clk 0:02:59]} 16. Rhe1 {[%clk 0:02:41]}  Rc8 {[%clk 0:02:52]} 17. Kb1 {[%clk 0:02:38]}  Nb6 {[%clk 0:02:48]} 18. Qf2 {[%clk 0:02:14]}  Nc4 {[%clk 0:02:42]} 19. Bxc4 {[%clk 0:02:06]}  Qxc4 {[%clk 0:02:31]} 20. fxe5 {[%clk 0:00:53]}  dxe5 {[%clk 0:02:29]} 21. Bg5 {[%clk 0:00:53]}  Ng4 {[%clk 0:01:34]} 22. hxg4 {[%clk 0:00:48]}  Bxg5 {[%clk 0:01:34]} 23. Nd5 {[%clk 0:00:38]}  Bd8 {[%clk 0:01:28]} 24. g5 {[%clk 0:00:29]}  h3 {[%clk 0:01:29]} 25. gxh3 {[%clk 0:00:28]}  Rxh3 {[%clk 0:01:30]} 26. Rh1 {[%clk 0:00:24]}  Qxe4 {[%clk 0:00:59]} 27. Rhe1 {[%clk 0:00:16]}  Qf3 {[%clk 0:00:51]} 28. Qxf3 {[%clk 0:00:15]}  Rxf3 {[%clk 0:00:52]} 29. Rxe5 {[%clk 0:00:16]}  Rf5 {[%clk 0:00:50]} 30. Rxf5 {[%clk 0:00:12]}  Bxf5 {[%clk 0:00:50]} 31. Nd4 {[%clk 0:00:11]}  Bg6 {[%clk 0:00:50]} 32. Re1+ {[%clk 0:00:09]}  Kf8 {[%clk 0:00:50]} 33. Re5 {[%clk 0:00:06]}  Rc5 {[%clk 0:00:43]} 34. Kc1 {[%clk 0:00:05]}  Bc7 {[%clk 0:00:42]} 35. Nxc7 {[%clk 0:00:01]}  Rxe5 {[%clk 0:00:43]} 0-1


[Site "https://www.chess.com"]

[Event "Titled Tuesday Blitz January 31 Late 2023"]
[White "Sanal, Vahap"]
[Black "Ibadov, Dashgyn"]
[WhiteFideId "6300545"]
[BlackFideId "24107514"]
[WhiteElo "2600"]
[BlackElo "2391"]
[Result "1-0"]
[Round "01"]
[TimeControl "180+2"]
[Date "2023.01.31"]
[WhiteClock "0:00:58"]
[BlackClock "0:00:15"]

1. e4 {[%clk 0:02:53]}  e6 {[%clk 0:02:58]} 2. d4 {[%clk 0:02:49]}  d5 {[%clk 0:02:59]} 3. Nd2 {[%clk 0:02:49]}  c5 {[%clk 0:02:58]} 4. exd5 {[%clk 0:02:46]}  Qxd5 {[%clk 0:02:59]} 5. Ngf3 {[%clk 0:02:47]}  cxd4 {[%clk 0:02:59]} 6. Bc4 {[%clk 0:02:45]}  Qd6 {[%clk 0:03:00]} 7. O-O {[%clk 0:02:44]}  Nf6 {[%clk 0:03:00]} 8. Nb3 {[%clk 0:02:44]}  Nc6 {[%clk 0:03:00]} 9. Nbxd4 {[%clk 0:02:43]}  Nxd4 {[%clk 0:03:01]} 10. Nxd4 {[%clk 0:02:44]}  Be7 {[%clk 0:03:02]} 11. Nb5 {[%clk 0:02:34]}  Qb8 {[%clk 0:02:43]} 12. Qd4 {[%clk 0:02:10]}  e5 {[%clk 0:02:34]} 13. Qc3 {[%clk 0:02:09]}  a6 {[%clk 0:02:26]} 14. Nc7+ {[%clk 0:01:49]}  Qxc7 {[%clk 0:02:26]} 15. Bxf7+ {[%clk 0:01:49]}  Kd8 {[%clk 0:02:21]} 16. Qg3 {[%clk 0:01:49]}  Bg4 {[%clk 0:02:01]} 17. h3 {[%clk 0:01:45]}  Rf8 {[%clk 0:01:45]} 18. Bb3 {[%clk 0:01:42]}  Be2 {[%clk 0:01:38]} 19. Re1 {[%clk 0:01:41]}  Bc4 {[%clk 0:01:37]} 20. Bxc4 {[%clk 0:01:35]}  Qxc4 {[%clk 0:01:38]} 21. Qxe5 {[%clk 0:01:34]}  Qc5 {[%clk 0:01:28]} 22. Qe6 {[%clk 0:01:32]}  Qd6 {[%clk 0:00:54]} 23. Qb3 {[%clk 0:01:21]}  Qb4 {[%clk 0:00:49]} 24. Qe6 {[%clk 0:01:12]}  Rc8 {[%clk 0:00:38]} 25. Bd2 {[%clk 0:01:06]}  Qc5 {[%clk 0:00:17]} 26. Ba5+ {[%clk 0:01:06]}  Rc7 {[%clk 0:00:15]} 27. b4 {[%clk 0:00:58]} 1-0


[Site "https://www.chess.com"]

[Event "Titled Tuesday Blitz January 31 Late 2023"]
[White "Terry, Renato"]
[Black "Zochowski, Kacper"]
[WhiteFideId "3803457"]
[BlackFideId "1125494"]
[WhiteElo "2520"]
[BlackElo "2262"]
[Result "1-0"]
[Round "01"]
[TimeControl "180+2"]
[Date "2023.01.31"]
[WhiteClock "0:01:16"]
[BlackClock "0:00:51"]

1. e4 {[%clk 0:02:57]}  d6 {[%clk 0:03:00]} 2. d4 {[%clk 0:02:57]}  Nf6 {[%clk 0:03:00]} 3. Bd3 {[%clk 0:02:56]}  e5 {[%clk 0:03:00]} 4. c3 {[%clk 0:02:53]}  d5 {[%clk 0:03:01]} 5. dxe5 {[%clk 0:02:47]}  Nxe4 {[%clk 0:03:01]} 6. Be3 {[%clk 0:02:37]}  Nc5 {[%clk 0:02:50]} 7. Bc2 {[%clk 0:02:33]}  Nc6 {[%clk 0:02:50]} 8. f4 {[%clk 0:02:32]}  g6 {[%clk 0:02:44]} 9. Nf3 {[%clk 0:02:31]}  Bg4 {[%clk 0:02:43]} 10. O-O {[%clk 0:02:29]}  Ne4 {[%clk 0:02:35]} 11. h3 {[%clk 0:02:21]}  Bf5 {[%clk 0:02:05]} 12. Nbd2 {[%clk 0:02:14]}  Ng3 {[%clk 0:01:53]} 13. Re1 {[%clk 0:02:13]}  Bxc2 {[%clk 0:01:43]} 14. Qxc2 {[%clk 0:02:14]}  Bh6 {[%clk 0:01:41]} 15. Nb3 {[%clk 0:01:51]}  O-O {[%clk 0:01:40]} 16. Rad1 {[%clk 0:01:49]}  Ne7 {[%clk 0:01:31]} 17. Nc5 {[%clk 0:01:39]}  Qc8 {[%clk 0:01:27]} 18. Nd3 {[%clk 0:01:38]}  Nef5 {[%clk 0:01:25]} 19. Bc5 {[%clk 0:01:34]}  Re8 {[%clk 0:01:23]} 20. c4 {[%clk 0:01:31]}  b6 {[%clk 0:01:14]} 21. Bf2 {[%clk 0:01:30]}  dxc4 {[%clk 0:01:08]} 22. Qxc4 {[%clk 0:01:30]}  c5 {[%clk 0:01:09]} 23. Kh2 {[%clk 0:01:28]}  Nh5 {[%clk 0:00:59]} 24. g4 {[%clk 0:01:28]}  b5 {[%clk 0:01:00]} 25. Qxc5 {[%clk 0:01:17]}  Bxf4+ {[%clk 0:01:00]} 26. Nxf4 {[%clk 0:01:16]}  Nxf4 {[%clk 0:01:00]} 27. Qxc8 {[%clk 0:01:16]}  Raxc8 {[%clk 0:00:57]} 28. gxf5 {[%clk 0:01:16]}  Rc2 {[%clk 0:00:58]} 29. Rd2 {[%clk 0:01:17]}  Rxd2 {[%clk 0:00:56]} 30. Nxd2 {[%clk 0:01:17]}  Nd3 {[%clk 0:00:57]} 31. Re2 {[%clk 0:01:15]}  Nxb2 {[%clk 0:00:58]} 32. Ne4 {[%clk 0:01:14]}  gxf5 {[%clk 0:00:50]} 33. Nf6+ {[%clk 0:01:15]}  Kh8 {[%clk 0:00:50]} 34. Nxe8 {[%clk 0:01:15]}  f4 {[%clk 0:00:51]} 35. Rxb2 {[%clk 0:01:15]}  f3 {[%clk 0:00:51]} 36. Rxb5 {[%clk 0:01:15]}  f5 {[%clk 0:00:52]} 37. Rb7 {[%clk 0:01:14]}  f4 {[%clk 0:00:52]} 38. Nf6 {[%clk 0:01:15]}  a5 {[%clk 0:00:51]} 39. Rxh7# {[%clk 0:01:16]} 1-0


[Site "https://www.chess.com"]

[Event "Titled Tuesday Blitz January 31 Late 2023"]
[White "Tang, Andrew"]
[Black "Jimenez Almeida, Luis David"]
[WhiteFideId "2059630"]
[BlackFideId "22242244"]
[WhiteElo "2523"]
[BlackElo "2242"]
[Result "1-0"]
[Round "01"]
[TimeControl "180+2"]
[Date "2023.01.31"]
[WhiteClock "0:00:35"]
[BlackClock "0:00:30"]

1. d4 {[%clk 0:02:48]}  g6 {[%clk 0:02:59]} 2. c4 {[%clk 0:02:47]}  Bg7 {[%clk 0:02:59]} 3. Nc3 {[%clk 0:02:43]}  c5 {[%clk 0:02:59]} 4. d5 {[%clk 0:02:35]}  Bxc3+ {[%clk 0:02:59]} 5. bxc3 {[%clk 0:02:29]}  Qa5 {[%clk 0:02:59]} 6. e4 {[%clk 0:02:10]}  Qxc3+ {[%clk 0:02:58]} 7. Bd2 {[%clk 0:02:06]}  Qg7 {[%clk 0:02:49]} 8. Rc1 {[%clk 0:01:45]}  d6 {[%clk 0:02:47]} 9. Bc3 {[%clk 0:01:14]}  f6 {[%clk 0:02:47]} 10. f4 {[%clk 0:01:13]}  Nh6 {[%clk 0:02:46]} 11. Nf3 {[%clk 0:01:11]}  Bg4 {[%clk 0:02:42]} 12. Bd3 {[%clk 0:01:00]}  O-O {[%clk 0:02:40]} 13. O-O {[%clk 0:00:57]}  Nf7 {[%clk 0:02:37]} 14. Qe1 {[%clk 0:00:55]}  Bxf3 {[%clk 0:02:32]} 15. Rxf3 {[%clk 0:00:56]}  Nd7 {[%clk 0:02:32]} 16. h4 {[%clk 0:00:50]}  Kh8 {[%clk 0:01:59]} 17. Qg3 {[%clk 0:00:47]}  a6 {[%clk 0:01:54]} 18. Qg4 {[%clk 0:00:44]}  Rfd8 {[%clk 0:01:41]} 19. h5 {[%clk 0:00:39]}  gxh5 {[%clk 0:01:31]} 20. Qxh5 {[%clk 0:00:39]}  Rg8 {[%clk 0:01:20]} 21. Qh2 {[%clk 0:00:38]}  Rab8 {[%clk 0:01:14]} 22. Rh3 {[%clk 0:00:38]}  b5 {[%clk 0:01:09]} 23. e5 {[%clk 0:00:37]}  h6 {[%clk 0:00:44]} 24. e6 {[%clk 0:00:37]}  bxc4 {[%clk 0:00:32]} 25. exf7 {[%clk 0:00:37]}  Qxg2+ {[%clk 0:00:29]} 26. Qxg2 {[%clk 0:00:37]}  Rxg2+ {[%clk 0:00:30]} 27. Kxg2 {[%clk 0:00:37]}  cxd3 {[%clk 0:00:30]} 28. Rg3 {[%clk 0:00:35]} 1-0


[Site "https://www.chess.com"]

[Event "Titled Tuesday Blitz January 31 Late 2023"]
[White "Winterberg, Lukas"]
[Black "Kozak, Adam"]
[WhiteFideId "24622702"]
[BlackFideId "753246"]
[WhiteElo "2402"]
[BlackElo "2572"]
[Result "0-1"]
[Round "01"]
[TimeControl "180+2"]
[Date "2023.01.31"]
[WhiteClock "0:00:39"]
[BlackClock "0:00:35"]

1. Nf3 {[%clk 0:03:00]}  c5 {[%clk 0:02:39]} 2. e4 {[%clk 0:02:58]}  a6 {[%clk 0:02:24]} 3. c3 {[%clk 0:02:57]}  b5 {[%clk 0:02:14]} 4. d4 {[%clk 0:02:56]}  cxd4 {[%clk 0:02:13]} 5. cxd4 {[%clk 0:02:57]}  Bb7 {[%clk 0:02:13]} 6. Bd3 {[%clk 0:02:57]}  e6 {[%clk 0:02:13]} 7. O-O {[%clk 0:02:57]}  Nc6 {[%clk 0:02:05]} 8. a3 {[%clk 0:02:55]}  Na5 {[%clk 0:02:04]} 9. b4 {[%clk 0:02:50]}  Nc4 {[%clk 0:02:04]} 10. Nbd2 {[%clk 0:02:50]}  Rc8 {[%clk 0:02:03]} 11. d5 {[%clk 0:02:44]}  Nf6 {[%clk 0:02:00]} 12. Re1 {[%clk 0:02:38]}  a5 {[%clk 0:01:44]} 13. d6 {[%clk 0:02:33]}  axb4 {[%clk 0:01:33]} 14. axb4 {[%clk 0:02:34]}  Qb6 {[%clk 0:01:17]} 15. e5 {[%clk 0:02:23]}  Ng4 {[%clk 0:01:17]} 16. Qe2 {[%clk 0:02:18]}  f6 {[%clk 0:01:17]} 17. Bxc4 {[%clk 0:01:58]}  bxc4 {[%clk 0:01:16]} 18. Nxc4 {[%clk 0:01:57]}  Qxf2+ {[%clk 0:01:16]} 19. Qxf2 {[%clk 0:01:56]}  Nxf2 {[%clk 0:01:16]} 20. Nb6 {[%clk 0:01:42]}  Rc6 {[%clk 0:01:12]} 21. Kxf2 {[%clk 0:01:26]}  Rxb6 {[%clk 0:01:12]} 22. Be3 {[%clk 0:01:27]}  Rxb4 {[%clk 0:01:10]} 23. Rf1 {[%clk 0:01:05]}  fxe5 {[%clk 0:01:04]} 24. Nxe5 {[%clk 0:00:58]}  Bxd6 {[%clk 0:01:02]} 25. Nd3 {[%clk 0:00:57]}  Rb3 {[%clk 0:00:59]} 26. Ke2 {[%clk 0:00:56]}  Rf8 {[%clk 0:00:53]} 27. Rfb1 {[%clk 0:00:44]}  Rxb1 {[%clk 0:00:51]} 28. Rxb1 {[%clk 0:00:44]}  Be4 {[%clk 0:00:40]} 29. Rb6 {[%clk 0:00:42]}  Bxd3+ {[%clk 0:00:36]} 30. Kxd3 {[%clk 0:00:43]}  Bxh2 {[%clk 0:00:36]} 31. Bc5 {[%clk 0:00:42]}  Rf5 {[%clk 0:00:36]} 32. Bd4 {[%clk 0:00:39]}  Rd5 {[%clk 0:00:35]} 0-1


[Site "https://www.chess.com"]

[Event "Titled Tuesday Blitz January 31 Late 2023"]
[White "Lenderman, Aleksandr"]
[Black "Ronka, Erik"]
[WhiteFideId "2021285"]
[BlackFideId "505080"]
[WhiteElo "2572"]
[BlackElo "2276"]
[Result "1/2-1/2"]
[Round "01"]
[TimeControl "180+2"]
[Date "2023.01.31"]
[WhiteClock "0:00:08"]
[BlackClock "0:00:08"]

1. Nf3 {[%clk 0:02:26]}  d5 {[%clk 0:02:54]} 2. e3 {[%clk 0:02:24]}  Nf6 {[%clk 0:02:52]} 3. c4 {[%clk 0:02:24]}  c6 {[%clk 0:02:52]} 4. d4 {[%clk 0:02:23]}  Bf5 {[%clk 0:02:48]} 5. Bd3 {[%clk 0:02:18]}  Bxd3 {[%clk 0:02:45]} 6. Qxd3 {[%clk 0:02:19]}  e6 {[%clk 0:02:45]} 7. O-O {[%clk 0:02:19]}  Be7 {[%clk 0:02:43]} 8. Nc3 {[%clk 0:02:19]}  O-O {[%clk 0:02:43]} 9. e4 {[%clk 0:02:19]}  dxe4 {[%clk 0:02:38]} 10. Nxe4 {[%clk 0:02:13]}  Nxe4 {[%clk 0:02:37]} 11. Qxe4 {[%clk 0:02:10]}  Nd7 {[%clk 0:02:35]} 12. Rd1 {[%clk 0:02:10]}  Re8 {[%clk 0:02:27]} 13. Bf4 {[%clk 0:02:09]}  Qb6 {[%clk 0:02:23]} 14. Qe2 {[%clk 0:02:08]}  Nf8 {[%clk 0:02:15]} 15. Rd3 {[%clk 0:02:06]}  Ng6 {[%clk 0:02:15]} 16. Be3 {[%clk 0:02:04]}  Qc7 {[%clk 0:02:12]} 17. Rad1 {[%clk 0:02:04]}  Rad8 {[%clk 0:02:12]} 18. Bc1 {[%clk 0:02:02]}  Bf6 {[%clk 0:02:12]} 19. Qe4 {[%clk 0:02:01]}  c5 {[%clk 0:01:24]} 20. dxc5 {[%clk 0:01:48]}  Rxd3 {[%clk 0:01:10]} 21. Rxd3 {[%clk 0:01:49]}  Qxc5 {[%clk 0:01:09]} 22. b3 {[%clk 0:01:48]}  Qc7 {[%clk 0:01:05]} 23. g3 {[%clk 0:01:43]}  b6 {[%clk 0:01:03]} 24. h4 {[%clk 0:01:36]}  h6 {[%clk 0:00:59]} 25. h5 {[%clk 0:01:35]}  Ne7 {[%clk 0:00:59]} 26. Bf4 {[%clk 0:01:34]}  Qc8 {[%clk 0:00:49]} 27. Be5 {[%clk 0:01:30]}  Bxe5 {[%clk 0:00:46]} 28. Nxe5 {[%clk 0:01:30]}  Rd8 {[%clk 0:00:44]} 29. Rxd8+ {[%clk 0:01:19]}  Qxd8 {[%clk 0:00:44]} 30. Kg2 {[%clk 0:01:20]}  f6 {[%clk 0:00:36]} 31. Nc6 {[%clk 0:01:17]}  Qd7 {[%clk 0:00:28]} 32. Nxe7+ {[%clk 0:01:12]}  Qxe7 {[%clk 0:00:29]} 33. g4 {[%clk 0:01:07]}  Qf7 {[%clk 0:00:19]} 34. Qa8+ {[%clk 0:01:05]}  Kh7 {[%clk 0:00:19]} 35. Qe4+ {[%clk 0:01:06]}  f5 {[%clk 0:00:19]} 36. Qd3 {[%clk 0:01:05]}  Qf6 {[%clk 0:00:19]} 37. b4 {[%clk 0:01:04]}  Qg5 {[%clk 0:00:19]} 38. f3 {[%clk 0:01:05]}  Kg8 {[%clk 0:00:17]} 39. Qe2 {[%clk 0:01:02]}  Kf7 {[%clk 0:00:16]} 40. c5 {[%clk 0:01:02]}  bxc5 {[%clk 0:00:15]} 41. b5 {[%clk 0:01:01]}  fxg4 {[%clk 0:00:15]} 42. fxg4 {[%clk 0:01:01]}  Qd5+ {[%clk 0:00:16]} 43. Kg3 {[%clk 0:00:55]}  c4 {[%clk 0:00:17]} 44. Qf2+ {[%clk 0:00:55]}  Kg8 {[%clk 0:00:14]} 45. a4 {[%clk 0:00:52]}  Qd3+ {[%clk 0:00:13]} 46. Kh4 {[%clk 0:00:51]}  c3 {[%clk 0:00:12]} 47. b6 {[%clk 0:00:46]}  Qd8+ {[%clk 0:00:11]} 48. Kh3 {[%clk 0:00:45]}  axb6 {[%clk 0:00:10]} 49. Qe3 {[%clk 0:00:45]}  Kf7 {[%clk 0:00:09]} 50. Qxc3 {[%clk 0:00:44]}  Qd7 {[%clk 0:00:09]} 51. Qf3+ {[%clk 0:00:40]}  Kg8 {[%clk 0:00:08]} 52. Qe4 {[%clk 0:00:39]}  Qd5 {[%clk 0:00:07]} 53. Qe3 {[%clk 0:00:38]}  Qd6 {[%clk 0:00:05]} 54. Qf3 {[%clk 0:00:36]}  Kh7 {[%clk 0:00:05]} 55. Qe4+ {[%clk 0:00:35]}  Kg8 {[%clk 0:00:04]} 56. Qc4 {[%clk 0:00:35]}  Qd5 {[%clk 0:00:04]} 57. Qc8+ {[%clk 0:00:33]}  Kh7 {[%clk 0:00:05]} 58. Qc2+ {[%clk 0:00:34]}  Kg8 {[%clk 0:00:06]} 59. Qe2 {[%clk 0:00:35]}  e5 {[%clk 0:00:05]} 60. Qe3 {[%clk 0:00:34]}  Qd4 {[%clk 0:00:06]} 61. Qb3+ {[%clk 0:00:34]}  Kh7 {[%clk 0:00:06]} 62. Kg3 {[%clk 0:00:33]}  e4 {[%clk 0:00:06]} 63. Kf4 {[%clk 0:00:30]}  e3+ {[%clk 0:00:06]} 64. Kf3 {[%clk 0:00:30]}  e2 {[%clk 0:00:04]} 65. Qc2+ {[%clk 0:00:29]}  Kg8 {[%clk 0:00:04]} 66. Qc8+ {[%clk 0:00:29]}  Kh7 {[%clk 0:00:04]} 67. Qf5+ {[%clk 0:00:29]}  Kg8 {[%clk 0:00:04]} 68. Qe6+ {[%clk 0:00:29]}  Kh7 {[%clk 0:00:04]} 69. Qg6+ {[%clk 0:00:12]}  Kg8 {[%clk 0:00:03]} 70. Qe8+ {[%clk 0:00:13]}  Kh7 {[%clk 0:00:04]} 71. Kxe2 {[%clk 0:00:14]}  Qxg4+ {[%clk 0:00:03]} 72. Kd3 {[%clk 0:00:15]}  Qb4 {[%clk 0:00:03]} 73. Qg6+ {[%clk 0:00:11]}  Kg8 {[%clk 0:00:03]} 74. Qe6+ {[%clk 0:00:11]}  Kh7 {[%clk 0:00:04]} 75. Qe8 {[%clk 0:00:10]}  Qb3+ {[%clk 0:00:03]} 76. Kd4 {[%clk 0:00:10]}  Qb4+ {[%clk 0:00:04]} 77. Kd5 {[%clk 0:00:09]}  Qc5+ {[%clk 0:00:05]} 78. Ke4 {[%clk 0:00:10]}  Qb4+ {[%clk 0:00:05]} 79. Kf5 {[%clk 0:00:09]}  Qc5+ {[%clk 0:00:06]} 80. Kf4 {[%clk 0:00:09]}  Qg5+ {[%clk 0:00:06]} 81. Ke4 {[%clk 0:00:08]}  Qc5 {[%clk 0:00:07]} 82. Qg6+ {[%clk 0:00:07]}  Kg8 {[%clk 0:00:07]} 83. Qe8+ {[%clk 0:00:08]}  Kh7 {[%clk 0:00:07]} 84. Qg6+ {[%clk 0:00:07]}  Kg8 {[%clk 0:00:08]} 85. Qe8+ {[%clk 0:00:08]}  Kh7 {[%clk 0:00:08]} 1/2-1/2


[Site "https://www.chess.com"]

[Event "Titled Tuesday Blitz January 31 Late 2023"]
[White "Svane, Rasmus"]
[Black "Koutlas, Nikolaos"]
[WhiteFideId "4657101"]
[BlackFideId "25827138"]
[WhiteElo "2623"]
[BlackElo "2341"]
[Result "1-0"]
[Round "01"]
[TimeControl "180+2"]
[Date "2023.01.31"]
[WhiteClock "0:00:42"]
[BlackClock "0:00:01"]

1. Nf3 {[%clk 0:03:00]}  Nf6 {[%clk 0:02:59]} 2. g3 {[%clk 0:03:01]}  g6 {[%clk 0:02:59]} 3. Bg2 {[%clk 0:03:02]}  Bg7 {[%clk 0:03:00]} 4. O-O {[%clk 0:03:02]}  O-O {[%clk 0:03:01]} 5. d4 {[%clk 0:03:03]}  d6 {[%clk 0:03:02]} 6. Re1 {[%clk 0:03:03]}  c6 {[%clk 0:03:03]} 7. e4 {[%clk 0:03:03]}  Bg4 {[%clk 0:03:00]} 8. Nbd2 {[%clk 0:02:58]}  e5 {[%clk 0:02:56]} 9. dxe5 {[%clk 0:02:56]}  dxe5 {[%clk 0:02:56]} 10. h3 {[%clk 0:02:56]}  Bxf3 {[%clk 0:02:52]} 11. Qxf3 {[%clk 0:02:55]}  Nbd7 {[%clk 0:02:48]} 12. a4 {[%clk 0:02:55]}  Nc5 {[%clk 0:02:39]} 13. a5 {[%clk 0:02:52]}  Bh6 {[%clk 0:02:22]} 14. Qc3 {[%clk 0:02:44]}  Qd4 {[%clk 0:02:11]} 15. Qxd4 {[%clk 0:02:44]}  exd4 {[%clk 0:02:11]} 16. f4 {[%clk 0:02:29]}  Rfe8 {[%clk 0:02:01]} 17. e5 {[%clk 0:02:25]}  Nd5 {[%clk 0:02:00]} 18. Ne4 {[%clk 0:01:59]}  Nxe4 {[%clk 0:01:57]} 19. Bxe4 {[%clk 0:02:00]}  Ne3 {[%clk 0:01:52]} 20. c3 {[%clk 0:01:49]}  c5 {[%clk 0:01:37]} 21. Bxe3 {[%clk 0:01:45]}  dxe3 {[%clk 0:01:36]} 22. Rxe3 {[%clk 0:01:46]}  Rxe5 {[%clk 0:01:32]} 23. Rae1 {[%clk 0:01:34]}  Re6 {[%clk 0:00:28]} 24. a6 {[%clk 0:01:23]}  Rd8 {[%clk 0:00:11]} 25. axb7 {[%clk 0:01:23]}  Rb6 {[%clk 0:00:12]} 26. Bd5 {[%clk 0:01:15]}  Bf8 {[%clk 0:00:13]} 27. Re8 {[%clk 0:01:00]}  Rxd5 {[%clk 0:00:08]} 28. b8=Q {[%clk 0:01:01]}  Rxb8 {[%clk 0:00:08]} 29. Rxb8 {[%clk 0:01:02]}  Kg7 {[%clk 0:00:08]} 30. Re2 {[%clk 0:00:58]}  c4 {[%clk 0:00:08]} 31. Kg2 {[%clk 0:00:57]}  Bc5 {[%clk 0:00:08]} 32. h4 {[%clk 0:00:50]}  h5 {[%clk 0:00:08]} 33. Rc8 {[%clk 0:00:50]}  Kf6 {[%clk 0:00:06]} 34. Kh3 {[%clk 0:00:50]}  Bb6 {[%clk 0:00:05]} 35. Rxc4 {[%clk 0:00:49]}  Rd1 {[%clk 0:00:06]} 36. b4 {[%clk 0:00:45]}  Kf5 {[%clk 0:00:05]} 37. Re5+ {[%clk 0:00:44]}  Kf6 {[%clk 0:00:05]} 38. Rc6+ {[%clk 0:00:45]}  Kg7 {[%clk 0:00:05]} 39. c4 {[%clk 0:00:44]}  Bd4 {[%clk 0:00:03]} 40. Rd5 {[%clk 0:00:44]}  Rd2 {[%clk 0:00:01]} 41. Rcd6 {[%clk 0:00:42]} 1-0


[Site "https://www.chess.com"]

[Event "Titled Tuesday Blitz January 31 Late 2023"]
[White "Carbone, Diego"]
[Black "Dardha, Daniel"]
[WhiteFideId "3002179"]
[BlackFideId "240990"]
[WhiteElo "2336"]
[BlackElo "2631"]
[Result "0-1"]
[Round "01"]
[TimeControl "180+2"]
[Date "2023.01.31"]
[WhiteClock "0:00:06"]
[BlackClock "0:00:15"]

1. d4 {[%clk 0:03:00]}  d5 {[%clk 0:02:57]} 2. c4 {[%clk 0:03:00]}  c6 {[%clk 0:02:58]} 3. Nf3 {[%clk 0:03:00]}  Nf6 {[%clk 0:02:57]} 4. e3 {[%clk 0:03:00]}  Bf5 {[%clk 0:02:54]} 5. Nc3 {[%clk 0:03:00]}  e6 {[%clk 0:02:54]} 6. Nh4 {[%clk 0:03:00]}  Bg6 {[%clk 0:02:53]} 7. Be2 {[%clk 0:02:59]}  Nbd7 {[%clk 0:02:49]} 8. O-O {[%clk 0:02:58]}  Be7 {[%clk 0:02:45]} 9. g3 {[%clk 0:02:31]}  a6 {[%clk 0:02:32]} 10. b3 {[%clk 0:02:14]}  Ne4 {[%clk 0:02:30]} 11. Nxe4 {[%clk 0:01:59]}  Bxe4 {[%clk 0:02:31]} 12. Ng2 {[%clk 0:01:58]}  h6 {[%clk 0:02:28]} 13. Bd3 {[%clk 0:01:55]}  Bxd3 {[%clk 0:02:15]} 14. Qxd3 {[%clk 0:01:56]}  Nf6 {[%clk 0:02:09]} 15. Nf4 {[%clk 0:01:49]}  O-O {[%clk 0:02:10]} 16. Bb2 {[%clk 0:01:47]}  Bd6 {[%clk 0:02:09]} 17. Qc2 {[%clk 0:01:40]}  Ne4 {[%clk 0:02:05]} 18. Nd3 {[%clk 0:01:39]}  Qe7 {[%clk 0:02:00]} 19. Kg2 {[%clk 0:01:38]}  Rac8 {[%clk 0:01:55]} 20. Rad1 {[%clk 0:01:35]}  Nf6 {[%clk 0:01:50]} 21. Rfe1 {[%clk 0:01:28]}  Rfd8 {[%clk 0:01:44]} 22. Rc1 {[%clk 0:01:20]}  Qe8 {[%clk 0:01:42]} 23. f3 {[%clk 0:01:06]}  Nd7 {[%clk 0:01:34]} 24. c5 {[%clk 0:01:04]}  Bb8 {[%clk 0:01:33]} 25. e4 {[%clk 0:01:04]}  dxe4 {[%clk 0:01:31]} 26. fxe4 {[%clk 0:01:05]}  e5 {[%clk 0:01:32]} 27. d5 {[%clk 0:01:03]}  cxd5 {[%clk 0:01:13]} 28. exd5 {[%clk 0:01:04]}  Nxc5 {[%clk 0:01:01]} 29. Nxc5 {[%clk 0:00:33]}  Rxd5 {[%clk 0:00:42]} 30. Qf2 {[%clk 0:00:23]}  Ba7 {[%clk 0:00:41]} 31. b4 {[%clk 0:00:20]}  a5 {[%clk 0:00:41]} 32. a3 {[%clk 0:00:20]}  axb4 {[%clk 0:00:42]} 33. axb4 {[%clk 0:00:21]}  Qb5 {[%clk 0:00:43]} 34. Qe2 {[%clk 0:00:14]}  Qxb4 {[%clk 0:00:35]} 35. Ne4 {[%clk 0:00:14]}  Rcd8 {[%clk 0:00:31]} 36. Bc3 {[%clk 0:00:14]}  Qe7 {[%clk 0:00:30]} 37. Rcd1 {[%clk 0:00:14]}  Qe6 {[%clk 0:00:20]} 38. Rxd5 {[%clk 0:00:13]}  Rxd5 {[%clk 0:00:21]} 39. Qf3 {[%clk 0:00:12]}  f5 {[%clk 0:00:19]} 40. Nf2 {[%clk 0:00:11]}  e4 {[%clk 0:00:18]} 41. Qf4 {[%clk 0:00:09]}  Qc6 {[%clk 0:00:16]} 42. Rc1 {[%clk 0:00:06]}  e3 {[%clk 0:00:15]} 0-1


[Site "https://www.chess.com"]

[Event "Titled Tuesday Blitz January 31 Late 2023"]
[White "Drygalov, Sergey"]
[Black "Kochetov, Andrey"]
[WhiteFideId "24171743"]
[BlackFideId "24130532"]
[WhiteElo "2547"]
[BlackElo "2165"]
[Result "1-0"]
[Round "01"]
[TimeControl "180+2"]
[Date "2023.01.31"]
[WhiteClock "0:02:14"]
[BlackClock "0:00:07"]

1. d4 {[%clk 0:02:58]}  Nf6 {[%clk 0:02:58]} 2. c4 {[%clk 0:02:56]}  e6 {[%clk 0:02:58]} 3. Nc3 {[%clk 0:02:54]}  c5 {[%clk 0:02:58]} 4. d5 {[%clk 0:02:54]}  exd5 {[%clk 0:02:59]} 5. cxd5 {[%clk 0:02:54]}  d6 {[%clk 0:02:59]} 6. e4 {[%clk 0:02:55]}  g6 {[%clk 0:02:59]} 7. h3 {[%clk 0:02:55]}  Bg7 {[%clk 0:02:59]} 8. Nf3 {[%clk 0:02:52]}  O-O {[%clk 0:02:58]} 9. Bd3 {[%clk 0:02:53]}  Re8 {[%clk 0:02:57]} 10. O-O {[%clk 0:02:52]}  c4 {[%clk 0:02:56]} 11. Bc2 {[%clk 0:02:51]}  b5 {[%clk 0:02:54]} 12. Nxb5 {[%clk 0:02:45]}  Nxe4 {[%clk 0:02:53]} 13. Re1 {[%clk 0:02:44]}  f5 {[%clk 0:02:37]} 14. Bxe4 {[%clk 0:02:38]}  fxe4 {[%clk 0:02:25]} 15. Ng5 {[%clk 0:02:38]}  Qb6 {[%clk 0:02:19]} 16. a4 {[%clk 0:02:38]}  a6 {[%clk 0:01:46]} 17. Be3 {[%clk 0:02:38]}  Qd8 {[%clk 0:01:39]} 18. Nd4 {[%clk 0:02:38]}  Bb7 {[%clk 0:01:24]} 19. Nde6 {[%clk 0:02:36]}  Qa5 {[%clk 0:01:14]} 20. Nxg7 {[%clk 0:02:34]}  Kxg7 {[%clk 0:01:13]} 21. Bd4+ {[%clk 0:02:33]}  Kg8 {[%clk 0:00:58]} 22. Rxe4 {[%clk 0:02:30]}  Nd7 {[%clk 0:00:54]} 23. Qg4 {[%clk 0:02:28]}  Nf8 {[%clk 0:00:16]} 24. Nxh7 {[%clk 0:02:13]}  Kxh7 {[%clk 0:00:08]} 25. Qh4+ {[%clk 0:02:13]}  Kg8 {[%clk 0:00:07]} 26. Qh8+ {[%clk 0:02:13]}  Kf7 {[%clk 0:00:07]} 27. Qg7# {[%clk 0:02:14]} 1-0


[Site "https://www.chess.com"]